[Event "44th Chess Olympiad Women 2022"]
[Site "Chennai"]
[Date "2022.08.05"]
[Round "7.26"]
[White "Phan, Nguyen Mai Chi"]
[Black "Maklakova, Nellija"]
[Result "1-0"]
[WhiteElo "2139"]
[BlackElo "1819"]
[Annotator "NA RC"]
[PlyCount "57"]
[EventDate "2022.??.??"]
[TimeControl "60"]

1. Nf3 {[%emt 0:00:09]} d5 {[%emt 0:00:47]} 2. d4 {[%emt 0:00:16]} e6 {[%emt 0:
00:00]} 3. e3 {[%emt 0:00:37]} c6 {[%emt 0:00:16]} 4. Bd3 {[%emt 0:00:18]} Nd7
{[%emt 0:02:09]} 5. b3 {[%emt 0:00:40]} Bd6 {[%emt 0:02:35]} 6. Bb2 {[%emt 0:
00:00]} f5 {[%emt 0:03:25]} 7. c4 {[%emt 0:08:47]} Ngf6 {[%emt 0:00:45]} 8. Qe2
{[%emt 0:10:15]} O-O {[%emt 0:04:48]} 9. cxd5 {[%emt 0:03:41]} cxd5 {[%emt 0:
00:00]} 10. O-O {[%emt 0:01:04]} Ne4 {[%emt 0:00:47]} 11. Ba3 {[%emt 0:03:54]}
Qe7 {[%emt 0:08:16]} 12. Bxd6 {[%emt 0:14:38]} Qxd6 {[%emt 0:00:18]} 13. Rc1 {
[%emt 0:00:25]} Rf6 {[%emt 0:01:28]} 14. Nc3 {[%emt 0:01:34]} a6 {[%emt 0:00:
00]} 15. Rc2 {[%emt 0:04:53]} Rh6 {[%emt 0:03:05]} 16. Rac1 {[%emt 0:01:38]}
Qf8 {[%emt 0:02:12]} 17. Nb1 {[%emt 0:06:05]} Ndf6 {[%emt 0:04:41]} 18. Ne5 {
[%emt 0:01:25]} g5 {[%emt 0:01:06]} 19. Rc7 {[%emt 0:01:08]} Nd6 {[%emt 0:00:
00]} 20. f4 {[%emt 0:08:07]} gxf4 {[%emt 0:02:48]} 21. exf4 {[%emt 0:00:08]}
Nfe8 {[%emt 0:01:11]} 22. R7c2 {[%emt 0:02:05]} Qe7 {[%emt 0:00:53]} 23. a4 {
[%emt 0:04:05]} Bd7 {[%emt 0:01:03]} 24. Nd2 {[%emt 0:01:47]} Rd8 {[%emt 0:00:
00]} 25. Ndf3 {[%emt 0:01:12]} Ne4 {[%emt 0:00:49]} 26. Qe1 {[%emt 0:01:10]}
N8f6 {[%emt 0:17:29]} 27. Rc7 {[%emt 0:01:34]} Nh5 {[%emt 0:08:54]} 28. g3 {
[%emt 0:05:31]} Qg7 {[%emt 0:02:12]} 29. Rxd7 {[%emt 0:00:29]} 1-0

[Event "44th Chess Olympiad Women 2022"]
[Site "Chennai"]
[Date "2022.08.05"]
[Round "7.26"]
[White "Rogule, Laura"]
[Black "Ryjanova, Julia"]
[Result "1/2-1/2"]
[WhiteElo "2292"]
[BlackElo "2284"]
[Annotator "ChessBase"]
[PlyCount "60"]
[EventDate "2022.??.??"]
[TimeControl "60"]

1. Nf3 {[%emt 0:00:04]} Nf6 {[%emt 0:00:11]} 2. g3 {[%emt 0:00:28]} b5 {
[%emt 0:00:48]} 3. Bg2 {[%emt 0:02:26]} Bb7 {[%emt 0:00:11]} 4. d4 {[%emt 0:00:
00]} e6 {[%emt 0:00:50]} 5. Qd3 {[%emt 0:05:29]} a6 {[%emt 0:05:55]} 6. Nbd2 {
[%emt 0:05:12]} c5 {[%emt 0:05:43]} 7. dxc5 {[%emt 0:06:41]} Bxc5 {[%emt 0:00:
00]} 8. e4 {[%emt 0:06:00]} Nc6 {[%emt 0:07:47]} 9. O-O {[%emt 0:05:08]} d5 {
[%emt 0:13:02]} 10. e5 {[%emt 0:07:47]} Nd7 {[%emt 0:08:49]} 11. Qe2 {[%emt 0:
00:00]} Bb6 {[%emt 0:08:07]} 12. Nb3 {[%emt 0:06:46]} Bc7 {[%emt 0:04:26]} 13.
Bf4 {[%emt 0:01:18]} h6 {[%emt 0:00:49]} 14. h4 {[%emt 0:02:25]} Qe7 {[%emt 0:
00:00]} 15. a4 {[%emt 0:06:14]} b4 {[%emt 0:01:10]} 16. a5 {[%emt 0:01:34]} Nc5
{[%emt 0:05:15]} 17. Qe3 {[%emt 0:14:19]} Nxb3 {[%emt 0:06:25]} 18. cxb3 {
[%emt 0:00:47]} Bxa5 {[%emt 0:01:51]} 19. Rfc1 {[%emt 0:01:03]} Bd8 {[%emt 0:
00:00]} 20. Rc2 {[%emt 0:03:28]} Qd7 {[%emt 0:04:04]} 21. Rac1 {[%emt 0:02:53]}
O-O {[%emt 0:03:28]} 22. Bxh6 {[%emt 0:03:21]} gxh6 {[%emt 0:05:52]} 23. Qxh6 {
[%emt 0:00:08]} f6 {[%emt 0:06:41]} 24. Rxc6 {[%emt 0:01:22]} Bxc6 {[%emt 0:00:
00]} 25. Rxc6 {[%emt 0:00:13]} Qxc6 {[%emt 0:01:53]} 26. Qg6+ {[%emt 0:00:37]}
Kh8 {[%emt 0:00:05]} 27. Qh6+ {[%emt 0:00:17]} Kg8 {[%emt 0:00:07]} 28. Qg6+ {
[%emt 0:02:29]} Kh8 {[%emt 0:00:05]} 29. Qh6+ {[%emt 0:00:16]} Kg8 {[%emt 0:00:
00]} 30. Qg6+ {[%emt 0:00:53]} Kh8 {[%emt 0:00:09]} 1/2-1/2

[Event "44th Chess Olympiad Women 2022"]
[Site "Chennai"]
[Date "2022.08.05"]
[Round "7.26"]
[White "Ter-Avetisjana, Agnesa Stepania"]
[Black "Richards, Heather S"]
[Result "1-0"]
[WhiteElo "1962"]
[BlackElo "2146"]
[Annotator "NA RC"]
[PlyCount "107"]
[EventDate "2022.??.??"]
[TimeControl "60"]

1. e4 {[%emt 0:00:02]} e6 {[%emt 0:00:07]} 2. d4 {[%emt 0:00:04]} d5 {[%emt 0:
00:00]} 3. Nd2 {[%emt 0:00:26]} c5 {[%emt 0:00:05]} 4. exd5 {[%emt 0:00:04]}
Qxd5 {[%emt 0:00:10]} 5. Ngf3 {[%emt 0:01:20]} cxd4 {[%emt 0:00:06]} 6. Bc4 {
[%emt 0:00:26]} Qd6 {[%emt 0:00:09]} 7. O-O {[%emt 0:01:46]} Nf6 {[%emt 0:00:
00]} 8. Nb3 {[%emt 0:01:37]} Nc6 {[%emt 0:00:08]} 9. Nbxd4 {[%emt 0:01:58]}
Nxd4 {[%emt 0:00:15]} 10. Nxd4 {[%emt 0:01:36]} Be7 {[%emt 0:00:09]} 11. c3 {
[%emt 0:01:08]} O-O {[%emt 0:05:08]} 12. Qf3 {[%emt 0:01:58]} Qc5 {[%emt 0:00:
00]} 13. Bb3 {[%emt 0:02:29]} Bd7 {[%emt 0:09:02]} 14. Re1 {[%emt 0:04:16]} a5
{[%emt 0:01:31]} 15. Be3 {[%emt 0:04:46]} Qc7 {[%emt 0:04:52]} 16. a4 {[%emt 0:
00:00]} Bd6 {[%emt 0:06:02]} 17. h3 {[%emt 0:02:25]} e5 {[%emt 0:00:59]} 18.
Nb5 {[%emt 0:01:45]} Bxb5 {[%emt 0:00:07]} 19. axb5 {[%emt 0:00:06]} e4 {
[%emt 0:03:21]} 20. Qf5 {[%emt 0:01:22]} Rfe8 {[%emt 0:02:44]} 21. b6 {[%emt 0:
00:00]} Bh2+ {[%emt 0:02:13]} 22. Kf1 {[%emt 0:01:47]} Qe5 {[%emt 0:00:56]} 23.
Qxe5 {[%emt 0:00:09]} Bxe5 {[%emt 0:00:05]} 24. Red1 {[%emt 0:00:18]} h6 {
[%emt 0:00:37]} 25. Ra4 {[%emt 0:04:46]} g5 {[%emt 0:05:07]} 26. g3 {[%emt 0:
00:00]} Kg7 {[%emt 0:06:14]} 27. Ke2 {[%emt 0:02:32]} Re7 {[%emt 0:02:48]} 28.
Rda1 {[%emt 0:06:50]} Nd7 {[%emt 0:02:58]} 29. Rxa5 {[%emt 0:01:33]} Rxa5 {
[%emt 0:01:06]} 30. Rxa5 {[%emt 0:00:09]} f5 {[%emt 0:00:04]} 31. Bd5 {[%emt 0:
00:00]} f4 {[%emt 0:03:12]} 32. gxf4 {[%emt 0:00:43]} gxf4 {[%emt 0:00:08]} 33.
Bc5 {[%emt 0:00:12]} Nxc5 {[%emt 0:04:45]} 34. Rxc5 {[%emt 0:00:10]} Kf6 {
[%emt 0:03:18]} 35. Bxe4 {[%emt 0:05:17]} Bxc3 {[%emt 0:00:24]} 36. Rf5+ {
[%emt 0:02:50]} Kg7 {[%emt 0:00:09]} 37. bxc3 {[%emt 0:01:10]} Rxe4+ {[%emt 0:
00:00]} 38. Kf3 {[%emt 0:09:20]} Re6 {[%emt 0:00:53]} 39. Rb5 {[%emt 0:00:57]}
Rc6 {[%emt 0:01:27]} 40. Kxf4 {[%emt 0:00:15]} Rxc3 {[%emt 0:00:22]} 41. Rd5 {
[%emt 0:31:06]} Rxh3 {[%emt 0:30:05]} 42. Rd7+ {[%emt 0:00:03]} Kf6 {[%emt 0:
00:00]} 43. Rxb7 {[%emt 0:00:06]} Rh4+ {[%emt 0:00:02]} 44. Kg3 {[%emt 0:01:23]
} Rb4 {[%emt 0:00:41]} 45. Rb8 {[%emt 0:00:55]} Ke7 {[%emt 0:03:06]} 46. f4 {
[%emt 0:02:38]} Kd7 {[%emt 0:00:47]} 47. f5 {[%emt 0:01:22]} Rb3+ {[%emt 0:00:
00]} 48. Kg4 {[%emt 0:01:59]} Rb1 {[%emt 0:00:00]} 49. f6 {[%emt 0:00:00]} Rg1+
{[%emt 0:00:00]} 50. Kh3 {[%emt 0:00:00]} Ke6 {[%emt 0:00:00]} 51. b7 {[%emt 0:
00:00]} Rh1+ {[%emt 0:02:17]} 52. Kg2 {[%emt 0:00:00]} Rb1 {[%emt 0:00:12]} 53.
Re8+ {[%emt 0:00:00]} Kxf6 {[%emt 0:00:05]} 54. b8=Q {[%emt 0:00:00]} 1-0

[Event "44th Chess Olympiad Women 2022"]
[Site "Chennai"]
[Date "2022.08.05"]
[Round "7.26"]
[White "Zhang, Jilin"]
[Black "Berzina, Ilze"]
[Result "0-1"]
[WhiteElo "2212"]
[BlackElo "2141"]
[Annotator "NA RC"]
[PlyCount "90"]
[EventDate "2022.??.??"]
[TimeControl "60"]

1. e4 {[%emt 0:00:03]} c6 {[%emt 0:00:11]} 2. d4 {[%emt 0:00:08]} d5 {[%emt 0:
00:00]} 3. exd5 {[%emt 0:00:10]} cxd5 {[%emt 0:00:21]} 4. Bd3 {[%emt 0:00:06]}
Nf6 {[%emt 0:01:03]} 5. h3 {[%emt 0:01:07]} Nc6 {[%emt 0:02:54]} 6. Nf3 {
[%emt 0:00:33]} Nb4 {[%emt 0:14:52]} 7. Be2 {[%emt 0:01:10]} Bf5 {[%emt 0:00:
00]} 8. Na3 {[%emt 0:00:11]} e6 {[%emt 0:02:25]} 9. Bf4 {[%emt 0:05:52]} Be7 {
[%emt 0:04:40]} 10. O-O {[%emt 0:02:42]} O-O {[%emt 0:00:20]} 11. c3 {[%emt 0:
00:00]} Nc6 {[%emt 0:00:27]} 12. Nc2 {[%emt 0:00:26]} h6 {[%emt 0:01:38]} 13.
Ne3 {[%emt 0:01:35]} Bh7 {[%emt 0:02:57]} 14. Ne5 {[%emt 0:02:00]} Nxe5 {
[%emt 0:04:38]} 15. Bxe5 {[%emt 0:00:16]} Ne4 {[%emt 0:00:47]} 16. Bd3 {
[%emt 0:05:22]} Bg5 {[%emt 0:04:08]} 17. Qe2 {[%emt 0:05:18]} Rc8 {[%emt 0:00:
00]} 18. Rae1 {[%emt 0:03:12]} Bh4 {[%emt 0:02:41]} 19. Qc2 {[%emt 0:09:46]} f5
{[%emt 0:08:10]} 20. g3 {[%emt 0:04:09]} Bf6 {[%emt 0:03:07]} 21. Bxf6 {
[%emt 0:03:53]} Qxf6 {[%emt 0:01:05]} 22. Kh2 {[%emt 0:08:53]} f4 {[%emt 0:00:
00]} 23. Ng2 {[%emt 0:08:04]} f3 {[%emt 0:10:16]} 24. Ne3 {[%emt 0:00:59]} h5 {
[%emt 0:00:44]} 25. Rg1 {[%emt 0:01:21]} g5 {[%emt 0:01:23]} 26. Nf1 {[%emt 0:
00:00]} Rc7 {[%emt 0:00:54]} 27. Re3 {[%emt 0:01:41]} Nd6 {[%emt 0:03:15]} 28.
g4 {[%emt 0:05:09]} Bxd3 {[%emt 0:01:27]} 29. Qxd3 {[%emt 0:00:54]} Qf4+ {
[%emt 0:01:13]} 30. Kh1 {[%emt 0:00:51]} Ne4 {[%emt 0:00:07]} 31. Qc2 {[%emt 0:
00:00]} Rh7 {[%emt 0:01:33]} 32. Nh2 {[%emt 0:00:53]} hxg4 {[%emt 0:00:08]} 33.
Rxg4 {[%emt 0:00:19]} Qf5 {[%emt 0:00:14]} 34. Rexe4 {[%emt 0:07:28]} dxe4 {
[%emt 0:00:08]} 35. Qxe4 {[%emt 0:00:14]} Rxh3 {[%emt 0:00:50]} 36. Kg1 {
[%emt 0:00:40]} Rf7 {[%emt 0:02:13]} 37. Nf1 {[%emt 0:03:30]} Qxe4 {[%emt 0:00:
00]} 38. Rxe4 {[%emt 0:00:06]} Rfh7 {[%emt 0:00:03]} 39. Ng3 {[%emt 0:00:25]}
Kf7 {[%emt 0:00:54]} 40. Re5 {[%emt 0:03:17]} Rh2 {[%emt 0:00:20]} 41. d5 {
[%emt 0:01:39]} Rg2+ {[%emt 0:04:38]} 42. Kf1 {[%emt 0:00:07]} Rhh2 {[%emt 0:
00:00]} 43. dxe6+ {[%emt 0:00:48]} Ke8 {[%emt 0:00:11]} 44. Rxg5 {[%emt 0:00:
00]} Rxf2+ {[%emt 0:00:11]} 45. Ke1 {[%emt 0:00:07]} Rxb2 {[%emt 0:00:45]} 0-1

[Event "44th Chess Olympiad Women 2022"]
[Site "Chennai"]
[Date "2022.08.05"]
[Round "7.27"]
[White "Gazola, Vanessa Ramos"]
[Black "Mihailova, Alina"]
[Result "0-1"]
[WhiteElo "2000"]
[BlackElo "1926"]
[Annotator "NA RC"]
[PlyCount "64"]
[EventDate "2022.??.??"]
[TimeControl "60"]

1. d4 {[%emt 0:00:04]} d5 {[%emt 0:00:08]} 2. c4 {[%emt 0:00:17]} dxc4 {
[%emt 0:00:07]} 3. e3 {[%emt 0:00:11]} Nf6 {[%emt 0:00:11]} 4. Bxc4 {[%emt 0:
00:00]} e6 {[%emt 0:00:09]} 5. Nf3 {[%emt 0:00:14]} a6 {[%emt 0:00:08]} 6. O-O
{[%emt 0:00:29]} b5 {[%emt 0:00:08]} 7. Bd3 {[%emt 0:00:16]} Bb7 {[%emt 0:00:
00]} 8. a4 {[%emt 0:01:28]} b4 {[%emt 0:00:11]} 9. Nbd2 {[%emt 0:00:09]} c5 {
[%emt 0:01:09]} 10. Qe2 {[%emt 0:07:19]} Nbd7 {[%emt 0:02:40]} 11. a5 {[%emt 0:
00:00]} Be7 {[%emt 0:02:18]} 12. Rd1 {[%emt 0:13:38]} O-O {[%emt 0:06:25]} 13.
e4 {[%emt 0:13:22]} cxd4 {[%emt 0:06:00]} 14. e5 {[%emt 0:00:13]} Nd5 {[%emt 0:
00:00]} 15. Ne4 {[%emt 0:00:14]} Qc7 {[%emt 0:21:11]} 16. Neg5 {[%emt 0:08:05]}
h6 {[%emt 0:12:05]} 17. Nh3 {[%emt 0:12:46]} Bc5 {[%emt 0:05:40]} 18. Qe4 {
[%emt 0:05:40]} N5f6 {[%emt 0:03:19]} 19. Qf4 {[%emt 0:03:52]} Bxf3 {[%emt 0:
00:00]} 20. Qxf3 {[%emt 0:02:52]} Nxe5 {[%emt 0:04:40]} 21. Qg3 {[%emt 0:00:06]
} Nh5 {[%emt 0:03:15]} 22. Qh4 {[%emt 0:01:06]} Nxd3 {[%emt 0:01:25]} 23. Rxd3
{[%emt 0:02:47]} Qe5 {[%emt 0:01:05]} 24. g4 {[%emt 0:07:35]} Qe1+ {[%emt 0:00:
00]} 25. Kg2 {[%emt 0:00:30]} Qe4+ {[%emt 0:00:29]} 26. Rf3 {[%emt 0:00:06]} f5
{[%emt 0:11:13]} 27. Qxh5 {[%emt 0:03:57]} fxg4 {[%emt 0:00:13]} 28. Bf4 {
[%emt 0:00:13]} Qxf3+ {[%emt 0:00:33]} 29. Kg1 {[%emt 0:00:09]} Qxh3 {[%emt 0:
00:00]} 30. Qe5 {[%emt 0:00:07]} Qf3 {[%emt 0:01:49]} 31. Bg3 {[%emt 0:00:11]}
Qf5 {[%emt 0:00:12]} 32. Qe2 {[%emt 0:00:12]} d3 {[%emt 0:00:05]} 0-1

[Event "44th Chess Olympiad Women 2022"]
[Site "Chennai"]
[Date "2022.08.05"]
[Round "7.27"]
[White "Librelato, Kathie Goulart"]
[Black "Gitu, Paula-Alexandra"]
[Result "1-0"]
[WhiteElo "2255"]
[BlackElo "2109"]
[Annotator "NA RC"]
[PlyCount "129"]
[EventDate "2022.??.??"]
[TimeControl "60"]

1. d4 {[%emt 0:00:03]} d6 {[%emt 0:00:07]} 2. Nf3 {[%emt 0:00:08]} Nf6 {
[%emt 0:00:33]} 3. c4 {[%emt 0:02:08]} c6 {[%emt 0:00:26]} 4. Nc3 {[%emt 0:00:
00]} g6 {[%emt 0:01:20]} 5. e4 {[%emt 0:06:40]} Bg7 {[%emt 0:00:45]} 6. Be2 {
[%emt 0:00:09]} O-O {[%emt 0:00:46]} 7. O-O {[%emt 0:00:06]} Bg4 {[%emt 0:00:
00]} 8. Qc2 {[%emt 0:08:10]} Bxf3 {[%emt 0:06:03]} 9. Bxf3 {[%emt 0:00:07]}
Nbd7 {[%emt 0:00:16]} 10. Rd1 {[%emt 0:05:20]} Qc7 {[%emt 0:01:26]} 11. Be3 {
[%emt 0:08:35]} e5 {[%emt 0:07:40]} 12. h3 {[%emt 0:02:39]} Rfe8 {[%emt 0:00:
00]} 13. Rd2 {[%emt 0:18:07]} Rad8 {[%emt 0:19:32]} 14. Rad1 {[%emt 0:01:45]}
exd4 {[%emt 0:10:31]} 15. Bxd4 {[%emt 0:00:35]} Ne5 {[%emt 0:01:01]} 16. Qa4 {
[%emt 0:25:51]} Nxf3+ {[%emt 0:07:29]} 17. gxf3 {[%emt 0:00:05]} Nh5 {[%emt 0:
00:00]} 18. Bxg7 {[%emt 0:01:47]} Kxg7 {[%emt 0:00:05]} 19. Qxa7 {[%emt 0:00:
00]} Qe7 {[%emt 0:24:37]} 20. Ne2 {[%emt 0:05:23]} Qg5+ {[%emt 0:03:38]} 21.
Kh2 {[%emt 0:00:26]} Nf4 {[%emt 0:01:36]} 22. Qd4+ {[%emt 0:01:23]} f6 {
[%emt 0:01:01]} 23. Rg1 {[%emt 0:01:27]} Nxe2 {[%emt 0:01:39]} 24. Rxe2 {
[%emt 0:00:10]} Qf4+ {[%emt 0:00:26]} 25. Rg3 {[%emt 0:00:31]} d5 {[%emt 0:00:
00]} 26. cxd5 {[%emt 0:02:30]} cxd5 {[%emt 0:00:01]} 27. Qb4 {[%emt 0:02:10]}
Rd7 {[%emt 0:01:08]} 28. Qb5 {[%emt 0:00:34]} Qd6 {[%emt 0:00:35]} 29. exd5 {
[%emt 0:02:25]} Rxe2 {[%emt 0:00:04]} 30. Qxe2 {[%emt 0:00:04]} Qxd5 {[%emt 0:
00:00]} 31. Qe8 {[%emt 0:00:21]} Rf7 {[%emt 0:01:33]} 32. a3 {[%emt 0:00:34]}
Qd2 {[%emt 0:00:21]} 33. Qe3 {[%emt 0:01:02]} Qxb2 {[%emt 0:00:05]} 34. Rg4 {
[%emt 0:00:11]} Qb5 {[%emt 0:01:03]} 35. Re4 {[%emt 0:00:48]} Qd5 {[%emt 0:00:
00]} 36. Re8 {[%emt 0:00:53]} Qd6+ {[%emt 0:00:20]} 37. Kg2 {[%emt 0:00:10]}
Qd7 {[%emt 0:00:45]} 38. Qe4 {[%emt 0:01:00]} Qd6 {[%emt 0:00:26]} 39. a4 {
[%emt 0:00:15]} f5 {[%emt 0:00:34]} 40. Qc4 {[%emt 0:01:29]} Qf6 {[%emt 0:00:
00]} 41. Qc8 {[%emt 0:32:37]} Qg5+ {[%emt 0:01:25]} 42. Kf1 {[%emt 0:00:00]}
Qh4 {[%emt 0:04:44]} 43. Qc3+ {[%emt 0:00:00]} Kh6 {[%emt 0:02:19]} 44. Qe3+ {
[%emt 0:00:00]} f4 {[%emt 0:10:30]} 45. Qe6 {[%emt 0:00:00]} Rf5 {[%emt 0:00:
00]} 46. Re7 {[%emt 0:00:00]} Qxh3+ {[%emt 0:01:17]} 47. Ke2 {[%emt 0:00:00]}
Qh5 {[%emt 0:02:14]} 48. Qd6 {[%emt 0:00:00]} Qg5 {[%emt 0:04:57]} 49. Qc7 {
[%emt 0:00:00]} Qf6 {[%emt 0:00:21]} 50. Rxh7+ {[%emt 0:00:00]} Kg5 {[%emt 0:
00:00]} 51. Qxb7 {[%emt 0:00:00]} Qe6+ {[%emt 0:00:55]} 52. Kf1 {[%emt 0:00:00]
} Qc4+ {[%emt 0:00:32]} 53. Kg2 {[%emt 0:00:00]} Qxa4 {[%emt 0:00:16]} 54. Qe7+
{[%emt 0:00:00]} Rf6 {[%emt 0:00:02]} 55. Qe5+ {[%emt 0:00:00]} Rf5 {[%emt 0:
00:00]} 56. Qg7 {[%emt 0:00:00]} Rf6 {[%emt 0:05:16]} 57. Qh6+ {[%emt 0:00:00]}
Kf5 {[%emt 0:00:03]} 58. Re7 {[%emt 0:00:00]} Ra6 {[%emt 0:01:53]} 59. Re4 {
[%emt 0:00:17]} Qxe4 {[%emt 0:00:57]} 60. Qf8+ {[%emt 0:00:33]} Rf6 {[%emt 0:
00:00]} 61. fxe4+ {[%emt 0:00:06]} Ke5 {[%emt 0:00:40]} 62. Qg7 {[%emt 0:02:45]
} Ke6 {[%emt 0:00:33]} 63. Kf3 {[%emt 0:00:10]} Ke5 {[%emt 0:00:30]} 64. Qe7+ {
[%emt 0:00:37]} Re6 {[%emt 0:00:05]} 65. Qg5+ {[%emt 0:00:04]} 1-0

[Event "44th Chess Olympiad Women 2022"]
[Site "Chennai"]
[Date "2022.08.05"]
[Round "7.27"]
[White "Petricenco, Ana"]
[Black "Terao, Juliana Sayumi"]
[Result "1/2-1/2"]
[WhiteElo "1912"]
[BlackElo "2223"]
[Annotator "NA RC"]
[PlyCount "105"]
[EventDate "2022.??.??"]
[TimeControl "60"]

1. e4 {[%emt 0:00:03]} c5 {[%emt 0:00:08]} 2. Nf3 {[%emt 0:00:06]} e6 {[%emt 0:
00:00]} 3. d3 {[%emt 0:00:10]} Nc6 {[%emt 0:00:27]} 4. g3 {[%emt 0:00:12]} g6 {
[%emt 0:02:51]} 5. Bg2 {[%emt 0:00:08]} Bg7 {[%emt 0:00:08]} 6. O-O {[%emt 0:
00:00]} Nge7 {[%emt 0:00:16]} 7. Re1 {[%emt 0:00:25]} O-O {[%emt 0:03:57]} 8.
e5 {[%emt 0:04:34]} d6 {[%emt 0:01:44]} 9. exd6 {[%emt 0:00:07]} Qxd6 {[%emt 0:
00:00]} 10. Nc3 {[%emt 0:02:02]} Nd4 {[%emt 0:19:53]} 11. Ne4 {[%emt 0:07:33]}
Qc7 {[%emt 0:13:33]} 12. c3 {[%emt 0:01:36]} Nxf3+ {[%emt 0:00:21]} 13. Qxf3 {
[%emt 0:00:40]} f5 {[%emt 0:02:36]} 14. Ng5 {[%emt 0:06:25]} e5 {[%emt 0:01:15]
} 15. Qe2 {[%emt 0:04:41]} h6 {[%emt 0:06:32]} 16. Nf3 {[%emt 0:00:07]} Nc6 {
[%emt 0:00:31]} 17. Nxe5 {[%emt 0:19:32]} Qxe5 {[%emt 0:19:52]} 18. Bxc6 {
[%emt 0:01:13]} Qxe2 {[%emt 0:04:54]} 19. Bd5+ {[%emt 0:00:31]} Be6 {[%emt 0:
00:00]} 20. Bxe6+ {[%emt 0:00:24]} Qxe6 {[%emt 0:00:06]} 21. Rxe6 {[%emt 0:00:
00]} Kf7 {[%emt 0:00:05]} 22. Rd6 {[%emt 0:02:23]} Rad8 {[%emt 0:03:26]} 23.
Rxd8 {[%emt 0:01:58]} Rxd8 {[%emt 0:00:05]} 24. Be3 {[%emt 0:00:07]} b6 {
[%emt 0:03:50]} 25. Rd1 {[%emt 0:00:54]} g5 {[%emt 0:00:25]} 26. Kf1 {[%emt 0:
00:00]} Ke6 {[%emt 0:02:56]} 27. Ke2 {[%emt 0:01:46]} Bf6 {[%emt 0:00:17]} 28.
a4 {[%emt 0:03:49]} Kd5 {[%emt 0:02:14]} 29. Kd2 {[%emt 0:10:54]} a6 {[%emt 0:
00:00]} 30. Kc2 {[%emt 0:01:31]} Rd6 {[%emt 0:04:00]} 31. d4 {[%emt 0:04:16]}
c4 {[%emt 0:00:50]} 32. Re1 {[%emt 0:00:29]} Re6 {[%emt 0:03:34]} 33. b3 {
[%emt 0:04:51]} b5 {[%emt 0:00:17]} 34. axb5 {[%emt 0:01:02]} axb5 {[%emt 0:00:
00]} 35. bxc4+ {[%emt 0:00:09]} bxc4 {[%emt 0:00:42]} 36. Ra1 {[%emt 0:01:09]}
Ke4 {[%emt 0:00:38]} 37. Ra5 {[%emt 0:03:15]} f4 {[%emt 0:01:09]} 38. gxf4 {
[%emt 0:02:32]} gxf4 {[%emt 0:00:06]} 39. Bd2 {[%emt 0:00:07]} Bh4 {[%emt 0:00:
00]} 40. d5 {[%emt 0:06:21]} Rf6 {[%emt 0:02:32]} 41. Rc5 {[%emt 0:32:41]} Kf3
{[%emt 0:12:10]} 42. Rxc4 {[%emt 0:00:00]} Bxf2 {[%emt 0:00:24]} 43. Kd3 {
[%emt 0:00:00]} h5 {[%emt 0:01:14]} 44. Rxf4+ {[%emt 0:00:00]} Rxf4 {[%emt 0:
00:00]} 45. Bxf4 {[%emt 0:00:00]} Kxf4 {[%emt 0:00:07]} 46. Ke2 {[%emt 0:00:00]
} Bb6 {[%emt 0:03:38]} 47. Kf1 {[%emt 0:00:00]} Kf3 {[%emt 0:02:10]} 48. d6 {
[%emt 0:00:00]} h4 {[%emt 0:01:05]} 49. d7 {[%emt 0:00:00]} h3 {[%emt 0:01:15]}
50. c4 {[%emt 0:00:00]} Bc7 {[%emt 0:01:35]} 51. Kg1 {[%emt 0:00:00]} Bb6+ {
[%emt 0:00:32]} 52. Kh1 {[%emt 0:00:00]} Bc7 {[%emt 0:00:15]} 53. Kg1 {[%emt 0:
00:00]} 1/2-1/2

[Event "44th Chess Olympiad Women 2022"]
[Site "Chennai"]
[Date "2022.08.05"]
[Round "7.27"]
[White "Verbin, Valentina"]
[Black "Alboredo, Julia"]
[Result "0-1"]
[WhiteElo "2069"]
[BlackElo "2264"]
[Annotator "ChessBase"]
[PlyCount "64"]
[EventDate "2022.??.??"]
[TimeControl "60"]

1. d4 {[%emt 0:00:04]} Nf6 {[%emt 0:00:16]} 2. c4 {[%emt 0:00:13]} g6 {[%emt 0:
00:00]} 3. Nc3 {[%emt 0:00:16]} Bg7 {[%emt 0:00:40]} 4. e4 {[%emt 0:00:23]} d6
{[%emt 0:00:07]} 5. h3 {[%emt 0:00:35]} O-O {[%emt 0:03:56]} 6. Be3 {[%emt 0:
00:00]} e5 {[%emt 0:01:22]} 7. d5 {[%emt 0:00:42]} a5 {[%emt 0:01:23]} 8. g4 {
[%emt 0:02:15]} Na6 {[%emt 0:01:14]} 9. Nf3 {[%emt 0:06:38]} Nd7 {[%emt 0:00:
00]} 10. g5 {[%emt 0:08:55]} Ndc5 {[%emt 0:04:20]} 11. Be2 {[%emt 0:07:25]} Bd7
{[%emt 0:06:52]} 12. Nd2 {[%emt 0:10:48]} f5 {[%emt 0:10:03]} 13. gxf6 {
[%emt 0:00:10]} Qxf6 {[%emt 0:00:17]} 14. Nb3 {[%emt 0:07:36]} Qh4 {[%emt 0:00:
00]} 15. Bf3 {[%emt 0:14:46]} Rf7 {[%emt 0:15:11]} 16. Qe2 {[%emt 0:06:49]}
Raf8 {[%emt 0:06:29]} 17. Nd2 {[%emt 0:00:32]} Nb4 {[%emt 0:06:08]} 18. O-O-O {
[%emt 0:02:22]} Bh6 {[%emt 0:01:38]} 19. Kb1 {[%emt 0:05:10]} Nbd3 {[%emt 0:00:
00]} 20. Rdf1 {[%emt 0:01:49]} Nf4 {[%emt 0:08:43]} 21. Qd1 {[%emt 0:00:12]}
Nfd3 {[%emt 0:06:26]} 22. Qe2 {[%emt 0:02:06]} Bf4 {[%emt 0:00:13]} 23. Nd1 {
[%emt 0:05:29]} b5 {[%emt 0:01:05]} 24. b3 {[%emt 0:08:19]} bxc4 {[%emt 0:00:
00]} 25. Nxc4 {[%emt 0:02:49]} a4 {[%emt 0:03:50]} 26. bxa4 {[%emt 0:02:47]}
Rb8+ {[%emt 0:01:05]} 27. Ka1 {[%emt 0:00:15]} Bxa4 {[%emt 0:03:28]} 28. Nc3 {
[%emt 0:00:30]} Bd7 {[%emt 0:00:11]} 29. Bg4 {[%emt 0:01:54]} Qd8 {[%emt 0:00:
00]} 30. Bxd7 {[%emt 0:02:04]} Qxd7 {[%emt 0:00:07]} 31. Rb1 {[%emt 0:00:13]}
Ra8 {[%emt 0:00:50]} 32. Nb2 {[%emt 0:00:22]} Nb3# {[%emt 0:00:38]} 0-1